[Event "Titled Tuesday Blitz May 24 Early 2022"]
[White "Shton, Roman"]
[Black "Lohani, Sujana"]
[WhiteFideId "14137461"]
[BlackFideId "12311987"]
[WhiteElo "2013"]
[BlackElo "1691"]
[Result "1-0"]
[Round "06"]
[TimeControl "180+1"]
[Date "2022.05.25"]
[WhiteClock "0:00:51"]
[BlackClock "0:01:03"]

1. d4 {[%clk 0:02:56]}  Nf6 {[%clk 0:02:57]} 2. Nf3 {[%clk 0:02:55]}  e6 {[%clk 0:02:57]} 3. g3 {[%clk 0:02:55]}  d5 {[%clk 0:02:56]} 4. Bg2 {[%clk 0:02:56]}  Be7 {[%clk 0:02:53]} 5. O-O {[%clk 0:02:56]}  O-O {[%clk 0:02:52]} 6. c4 {[%clk 0:02:57]}  b6 {[%clk 0:02:48]} 7. Nc3 {[%clk 0:02:16]}  Bb7 {[%clk 0:02:40]} 8. cxd5 {[%clk 0:02:16]}  Nxd5 {[%clk 0:02:39]} 9. Qc2 {[%clk 0:02:14]}  c5 {[%clk 0:02:36]} 10. dxc5 {[%clk 0:02:13]}  Bxc5 {[%clk 0:02:34]} 11. Rd1 {[%clk 0:02:07]}  Qc7 {[%clk 0:02:30]} 12. Bf4 {[%clk 0:02:04]}  Nxf4 {[%clk 0:02:20]} 13. gxf4 {[%clk 0:01:57]}  Qxf4 {[%clk 0:02:19]} 14. h4 {[%clk 0:01:41]}  Nc6 {[%clk 0:02:11]} 15. e3 {[%clk 0:01:39]}  Qf6 {[%clk 0:01:55]} 16. Rd7 {[%clk 0:01:33]}  Nb4 {[%clk 0:01:50]} 17. Qe2 {[%clk 0:01:24]}  Bxf3 {[%clk 0:01:31]} 18. Bxf3 {[%clk 0:01:22]}  Rad8 {[%clk 0:01:30]} 19. Rxa7 {[%clk 0:01:17]}  Qxh4 {[%clk 0:01:22]} 20. a3 {[%clk 0:01:03]}  Nd3 {[%clk 0:01:19]} 21. Ra4 {[%clk 0:01:01]}  Qg5+ {[%clk 0:01:14]} 22. Rg4 {[%clk 0:01:00]}  Qf6 {[%clk 0:01:12]} 23. Ne4 {[%clk 0:00:59]}  Qxb2 {[%clk 0:01:07]} 24. Qxb2 {[%clk 0:00:55]}  Nxb2 {[%clk 0:01:05]} 25. Kg2 {[%clk 0:00:56]}  Nd3 {[%clk 0:01:05]} 26. Rh1 {[%clk 0:00:52]}  Ne5 {[%clk 0:01:03]} 27. Nf6+ {[%clk 0:00:51]} 1-0


[Site "https://www.chess.com"]

[Event "Titled Tuesday Blitz May 24 Early 2022"]
[White "Shtyka, Sergey"]
[Black "Tarigan, Gilbert Elroy"]
[WhiteFideId "4138465"]
[BlackFideId "7108133"]
[WhiteElo "2014"]
[BlackElo "1908"]
[Result "0-1"]
[Round "06"]
[TimeControl "180+1"]
[Date "2022.05.25"]
[WhiteClock "0:00:04"]
[BlackClock "0:00:07"]

1. e4 {[%clk 0:02:50]}  e6 {[%clk 0:02:57]} 2. Nf3 {[%clk 0:02:50]}  d5 {[%clk 0:02:56]} 3. e5 {[%clk 0:02:50]}  b6 {[%clk 0:02:52]} 4. d4 {[%clk 0:02:49]}  Ba6 {[%clk 0:02:51]} 5. Bxa6 {[%clk 0:02:47]}  Nxa6 {[%clk 0:02:52]} 6. c4 {[%clk 0:02:44]}  Nb4 {[%clk 0:02:44]} 7. a3 {[%clk 0:02:27]}  Nc6 {[%clk 0:02:42]} 8. Qa4 {[%clk 0:02:24]}  Ne7 {[%clk 0:02:34]} 9. cxd5 {[%clk 0:02:23]}  Qxd5 {[%clk 0:02:35]} 10. Nc3 {[%clk 0:02:22]}  Qd7 {[%clk 0:02:31]} 11. Bg5 {[%clk 0:02:17]}  h6 {[%clk 0:02:16]} 12. Bh4 {[%clk 0:02:15]}  Nf5 {[%clk 0:02:05]} 13. O-O-O {[%clk 0:01:57]}  Nce7 {[%clk 0:01:58]} 14. Qxd7+ {[%clk 0:01:43]}  Kxd7 {[%clk 0:01:58]} 15. Bxe7 {[%clk 0:01:32]}  Nxe7 {[%clk 0:01:57]} 16. d5 {[%clk 0:01:32]}  exd5 {[%clk 0:01:52]} 17. Nxd5 {[%clk 0:01:30]}  Nxd5 {[%clk 0:01:53]} 18. Rxd5+ {[%clk 0:01:30]}  Ke6 {[%clk 0:01:50]} 19. Rhd1 {[%clk 0:01:29]}  Bc5 {[%clk 0:01:43]} 20. R5d2 {[%clk 0:01:14]}  a5 {[%clk 0:01:39]} 21. Nd4+ {[%clk 0:01:12]}  Kxe5 {[%clk 0:01:30]} 22. Nc6+ {[%clk 0:01:02]}  Kf6 {[%clk 0:01:27]} 23. Rd7 {[%clk 0:00:57]}  Bd6 {[%clk 0:01:15]} 24. Nd4 {[%clk 0:00:47]}  Rad8 {[%clk 0:01:05]} 25. Rxd8 {[%clk 0:00:45]}  Rxd8 {[%clk 0:01:05]} 26. g3 {[%clk 0:00:38]}  Be5 {[%clk 0:00:49]} 27. Nb5 {[%clk 0:00:38]}  Bxb2+ {[%clk 0:00:42]} 28. Kc2 {[%clk 0:00:36]}  Rxd1 {[%clk 0:00:42]} 29. Kxd1 {[%clk 0:00:37]}  c6 {[%clk 0:00:38]} 30. Na7 {[%clk 0:00:34]}  Bxa3 {[%clk 0:00:32]} 31. Nxc6 {[%clk 0:00:34]}  Bc5 {[%clk 0:00:32]} 32. f4 {[%clk 0:00:32]}  Ke6 {[%clk 0:00:22]} 33. Kc2 {[%clk 0:00:31]}  f6 {[%clk 0:00:15]} 34. Kb3 {[%clk 0:00:29]}  Kd7 {[%clk 0:00:07]} 35. Na7 {[%clk 0:00:28]}  h5 {[%clk 0:00:06]} 36. Nb5 {[%clk 0:00:28]}  Kc6 {[%clk 0:00:05]} 37. Nc3 {[%clk 0:00:28]}  Bg1 {[%clk 0:00:05]} 38. h3 {[%clk 0:00:28]}  b5 {[%clk 0:00:04]} 39. g4 {[%clk 0:00:28]}  hxg4 {[%clk 0:00:04]} 40. hxg4 {[%clk 0:00:28]}  a4+ {[%clk 0:00:05]} 41. Kb4 {[%clk 0:00:27]}  Bc5+ {[%clk 0:00:05]} 42. Ka5 {[%clk 0:00:27]}  a3 {[%clk 0:00:06]} 43. Na2 {[%clk 0:00:14]}  g6 {[%clk 0:00:05]} 44. f5 {[%clk 0:00:13]}  g5 {[%clk 0:00:05]} 45. Ka6 {[%clk 0:00:10]}  b4 {[%clk 0:00:05]} 46. Ka5 {[%clk 0:00:08]}  b3 {[%clk 0:00:06]} 47. Nc3 {[%clk 0:00:08]}  a2 {[%clk 0:00:07]} 48. Na4 {[%clk 0:00:04]}  a1=Q {[%clk 0:00:06]} 49. Ka6 {[%clk 0:00:04]}  Qxa4# {[%clk 0:00:07]} 0-1


[Site "https://www.chess.com"]

[Event "Titled Tuesday Blitz May 24 Early 2022"]
[White "Shuvalov, Evgenij"]
[Black "Itkis, Boris"]
[WhiteFideId "4187237"]
[BlackFideId "1209167"]
[WhiteElo "2053"]
[BlackElo "2207"]
[Result "1/2-1/2"]
[Round "06"]
[TimeControl "180+1"]
[Date "2022.05.25"]
[WhiteClock "0:01:18"]
[BlackClock "0:00:42"]

1. Nf3 {[%clk 0:03:00]}  Nf6 {[%clk 0:02:58]} 2. c4 {[%clk 0:03:00]}  Nc6 {[%clk 0:02:57]} 3. d4 {[%clk 0:03:00]}  e6 {[%clk 0:02:58]} 4. g3 {[%clk 0:02:58]}  Bb4+ {[%clk 0:02:58]} 5. Bd2 {[%clk 0:02:57]}  Qe7 {[%clk 0:02:52]} 6. Bg2 {[%clk 0:02:56]}  O-O {[%clk 0:02:52]} 7. O-O {[%clk 0:02:56]}  Bxd2 {[%clk 0:02:47]} 8. Nbxd2 {[%clk 0:02:56]}  d6 {[%clk 0:02:47]} 9. e4 {[%clk 0:02:53]}  e5 {[%clk 0:02:47]} 10. d5 {[%clk 0:02:50]}  Nb8 {[%clk 0:02:47]} 11. Ne1 {[%clk 0:02:47]}  a5 {[%clk 0:02:44]} 12. Nd3 {[%clk 0:02:46]}  Nbd7 {[%clk 0:02:38]} 13. Rc1 {[%clk 0:02:44]}  b6 {[%clk 0:02:38]} 14. b3 {[%clk 0:02:33]}  Nc5 {[%clk 0:02:35]} 15. Nb2 {[%clk 0:02:22]}  Ne8 {[%clk 0:02:19]} 16. a3 {[%clk 0:02:21]}  f5 {[%clk 0:02:19]} 17. exf5 {[%clk 0:02:20]}  Bxf5 {[%clk 0:02:18]} 18. b4 {[%clk 0:02:19]}  axb4 {[%clk 0:02:15]} 19. axb4 {[%clk 0:02:20]}  Nd3 {[%clk 0:02:15]} 20. Nxd3 {[%clk 0:02:19]}  Bxd3 {[%clk 0:02:16]} 21. Re1 {[%clk 0:02:19]}  Qf6 {[%clk 0:01:56]} 22. Qf3 {[%clk 0:02:14]}  Qxf3 {[%clk 0:01:52]} 23. Nxf3 {[%clk 0:02:15]}  Ra4 {[%clk 0:01:49]} 24. Re3 {[%clk 0:02:02]}  Bg6 {[%clk 0:01:37]} 25. b5 {[%clk 0:01:53]}  Nf6 {[%clk 0:01:36]} 26. Ng5 {[%clk 0:01:49]}  Ng4 {[%clk 0:01:30]} 27. Rf3 {[%clk 0:01:40]}  Rxf3 {[%clk 0:01:17]} 28. Bxf3 {[%clk 0:01:41]}  Nf6 {[%clk 0:01:18]} 29. Ne6 {[%clk 0:01:36]}  Bd3 {[%clk 0:01:18]} 30. Nxc7 {[%clk 0:01:32]}  Rxc4 {[%clk 0:01:17]} 31. Rxc4 {[%clk 0:01:26]}  Bxc4 {[%clk 0:01:18]} 32. Na8 {[%clk 0:01:26]}  Bxd5 {[%clk 0:01:14]} 33. Bxd5+ {[%clk 0:01:26]}  Nxd5 {[%clk 0:01:15]} 34. Kf1 {[%clk 0:01:24]}  Kf7 {[%clk 0:01:08]} 35. Ke2 {[%clk 0:01:25]}  Ke6 {[%clk 0:00:52]} 36. Kd3 {[%clk 0:01:24]}  g5 {[%clk 0:00:49]} 37. h3 {[%clk 0:01:21]}  Kd7 {[%clk 0:00:47]} 38. Kc4 {[%clk 0:01:20]}  Ke6 {[%clk 0:00:46]} 39. Kd3 {[%clk 0:01:17]}  Kd7 {[%clk 0:00:42]} 40. Kc4 {[%clk 0:01:18]}  Ke6 {[%clk 0:00:42]} 41. Kd3 {[%clk 0:01:18]} 1/2-1/2


[Site "https://www.chess.com"]

[Event "Titled Tuesday Blitz May 24 Early 2022"]
[White "Sismeiro, Miguel"]
[Black "Estrada Nieto, Julian"]
[WhiteFideId "1950975"]
[BlackFideId "5101018"]
[WhiteElo "2031"]
[BlackElo "2252"]
[Result "1-0"]
[Round "06"]
[TimeControl "180+1"]
[Date "2022.05.25"]
[WhiteClock "0:00:19"]
[BlackClock "0:00:04"]

1. e4 {[%clk 0:02:42]}  e5 {[%clk 0:02:59]} 2. Nc3 {[%clk 0:02:40]}  Nf6 {[%clk 0:02:58]} 3. Bc4 {[%clk 0:02:40]}  Nc6 {[%clk 0:02:57]} 4. d3 {[%clk 0:02:40]}  Bc5 {[%clk 0:02:57]} 5. f4 {[%clk 0:02:35]}  exf4 {[%clk 0:02:57]} 6. Bxf4 {[%clk 0:02:34]}  d6 {[%clk 0:02:57]} 7. Nf3 {[%clk 0:02:32]}  Nd4 {[%clk 0:02:57]} 8. Qd2 {[%clk 0:02:20]}  c6 {[%clk 0:02:49]} 9. Nxd4 {[%clk 0:01:46]}  Bxd4 {[%clk 0:02:48]} 10. O-O-O {[%clk 0:01:45]}  b5 {[%clk 0:02:33]} 11. Bb3 {[%clk 0:01:44]}  O-O {[%clk 0:02:30]} 12. Rdf1 {[%clk 0:01:42]}  a5 {[%clk 0:02:07]} 13. a4 {[%clk 0:01:40]}  Qb6 {[%clk 0:02:00]} 14. Kb1 {[%clk 0:01:11]}  Be6 {[%clk 0:01:36]} 15. Bxe6 {[%clk 0:01:00]}  fxe6 {[%clk 0:01:35]} 16. Bxd6 {[%clk 0:01:00]}  Rfd8 {[%clk 0:01:19]} 17. e5 {[%clk 0:00:58]}  Bxc3 {[%clk 0:01:16]} 18. Qxc3 {[%clk 0:00:51]}  Nd5 {[%clk 0:01:16]} 19. Qb3 {[%clk 0:00:44]}  bxa4 {[%clk 0:01:05]} 20. Qxb6 {[%clk 0:00:44]}  Nxb6 {[%clk 0:01:05]} 21. Bc7 {[%clk 0:00:43]}  Nd5 {[%clk 0:01:02]} 22. Bxd8 {[%clk 0:00:43]}  Rxd8 {[%clk 0:01:02]} 23. Re1 {[%clk 0:00:40]}  Rb8 {[%clk 0:01:00]} 24. Kc1 {[%clk 0:00:35]}  Rb5 {[%clk 0:00:26]} 25. Re4 {[%clk 0:00:32]}  a3 {[%clk 0:00:24]} 26. bxa3 {[%clk 0:00:32]}  Nc3 {[%clk 0:00:24]} 27. Ree1 {[%clk 0:00:26]}  c5 {[%clk 0:00:15]} 28. Kd2 {[%clk 0:00:25]}  Nd5 {[%clk 0:00:12]} 29. Rb1 {[%clk 0:00:25]}  Rxb1 {[%clk 0:00:12]} 30. Rxb1 {[%clk 0:00:26]}  Nf4 {[%clk 0:00:11]} 31. g3 {[%clk 0:00:23]}  Nd5 {[%clk 0:00:11]} 32. Rb5 {[%clk 0:00:21]}  a4 {[%clk 0:00:11]} 33. Rxc5 {[%clk 0:00:22]}  Kf7 {[%clk 0:00:11]} 34. Rc4 {[%clk 0:00:21]}  Kg6 {[%clk 0:00:10]} 35. Rxa4 {[%clk 0:00:21]}  Kf5 {[%clk 0:00:11]} 36. Re4 {[%clk 0:00:20]}  g5 {[%clk 0:00:10]} 37. a4 {[%clk 0:00:21]}  Nc7 {[%clk 0:00:10]} 38. a5 {[%clk 0:00:21]}  Na6 {[%clk 0:00:11]} 39. Re1 {[%clk 0:00:17]}  h5 {[%clk 0:00:12]} 40. d4 {[%clk 0:00:18]}  g4 {[%clk 0:00:11]} 41. Kd3 {[%clk 0:00:18]}  Nc7 {[%clk 0:00:09]} 42. Rf1+ {[%clk 0:00:18]}  Kg5 {[%clk 0:00:08]} 43. c4 {[%clk 0:00:19]}  Na6 {[%clk 0:00:08]} 44. Ke4 {[%clk 0:00:18]}  Nb4 {[%clk 0:00:07]} 45. Ra1 {[%clk 0:00:17]}  Na6 {[%clk 0:00:06]} 46. Rb1 {[%clk 0:00:17]}  h4 {[%clk 0:00:05]} 47. Rb6 {[%clk 0:00:17]}  hxg3 {[%clk 0:00:04]} 48. hxg3 {[%clk 0:00:18]}  Nc7 {[%clk 0:00:04]} 49. a6 {[%clk 0:00:19]} 1-0


[Site "https://www.chess.com"]

[Event "Titled Tuesday Blitz May 24 Early 2022"]
[White "Sokolovsky, Yahli"]
[Black "Przybylski, Wojciech"]
[WhiteFideId "2820242"]
[BlackFideId "1117599"]
[WhiteElo "1770"]
[BlackElo "2133"]
[Result "1-0"]
[Round "06"]
[TimeControl "180+1"]
[Date "2022.05.25"]
[WhiteClock "0:00:31"]
[BlackClock "0:00:01"]

1. b3 {[%clk 0:03:00]}  e5 {[%clk 0:02:56]} 2. Bb2 {[%clk 0:03:01]}  Nc6 {[%clk 0:02:55]} 3. e3 {[%clk 0:03:01]}  Nf6 {[%clk 0:02:54]} 4. Nf3 {[%clk 0:03:02]}  Bd6 {[%clk 0:02:52]} 5. d4 {[%clk 0:03:02]}  exd4 {[%clk 0:02:46]} 6. exd4 {[%clk 0:03:02]}  O-O {[%clk 0:02:46]} 7. Be2 {[%clk 0:03:03]}  Re8 {[%clk 0:02:44]} 8. O-O {[%clk 0:03:03]}  Bf8 {[%clk 0:02:42]} 9. d5 {[%clk 0:03:03]}  Nxd5 {[%clk 0:02:28]} 10. Qxd5 {[%clk 0:02:15]}  Rxe2 {[%clk 0:02:26]} 11. Nc3 {[%clk 0:02:04]}  Re7 {[%clk 0:02:17]} 12. Ne4 {[%clk 0:01:55]}  Nb4 {[%clk 0:01:41]} 13. Qg5 {[%clk 0:01:42]}  Kh8 {[%clk 0:01:06]} 14. Qh4 {[%clk 0:01:14]}  d5 {[%clk 0:00:28]} 15. Neg5 {[%clk 0:01:10]}  Bf5 {[%clk 0:00:26]} 16. Qxb4 {[%clk 0:01:10]}  h6 {[%clk 0:00:19]} 17. Qf4 {[%clk 0:01:00]}  Bg6 {[%clk 0:00:18]} 18. Nh3 {[%clk 0:00:57]}  Re4 {[%clk 0:00:09]} 19. Qxh6+ {[%clk 0:00:52]}  Kg8 {[%clk 0:00:09]} 20. Qg5 {[%clk 0:00:53]}  Be7 {[%clk 0:00:09]} 21. Qd2 {[%clk 0:00:47]}  Bd6 {[%clk 0:00:08]} 22. Nhg5 {[%clk 0:00:40]}  Rg4 {[%clk 0:00:07]} 23. h3 {[%clk 0:00:35]}  Bf4 {[%clk 0:00:02]} 24. Qd4 {[%clk 0:00:32]}  f6 {[%clk 0:00:01]} 25. hxg4 {[%clk 0:00:31]} 1-0


[Site "https://www.chess.com"]

[Event "Titled Tuesday Blitz May 24 Early 2022"]
[White "Steenbekkers, Franck"]
[Black "Petrova, Irina"]
[WhiteFideId "1004220"]
[BlackFideId "14124122"]
[WhiteElo "2018"]
[BlackElo "1993"]
[Result "1-0"]
[Round "06"]
[TimeControl "180+1"]
[Date "2022.05.25"]
[WhiteClock "0:02:06"]
[BlackClock "0:01:10"]

1. e4 {[%clk 0:02:53]}  c5 {[%clk 0:03:00]} 2. Nf3 {[%clk 0:02:51]}  Nc6 {[%clk 0:02:59]} 3. Bb5 {[%clk 0:02:50]}  g6 {[%clk 0:02:59]} 4. O-O {[%clk 0:02:48]}  Bg7 {[%clk 0:02:59]} 5. c3 {[%clk 0:02:47]}  Nf6 {[%clk 0:02:56]} 6. Re1 {[%clk 0:02:45]}  O-O {[%clk 0:02:55]} 7. d4 {[%clk 0:02:44]}  cxd4 {[%clk 0:02:55]} 8. cxd4 {[%clk 0:02:43]}  d5 {[%clk 0:02:56]} 9. e5 {[%clk 0:02:43]}  Ne4 {[%clk 0:02:56]} 10. Nc3 {[%clk 0:02:42]}  Nxc3 {[%clk 0:02:55]} 11. bxc3 {[%clk 0:02:41]}  Bg4 {[%clk 0:02:52]} 12. h3 {[%clk 0:02:40]}  Bxf3 {[%clk 0:02:52]} 13. Qxf3 {[%clk 0:02:40]}  Rc8 {[%clk 0:02:46]} 14. Bd3 {[%clk 0:02:39]}  e6 {[%clk 0:02:41]} 15. Qg3 {[%clk 0:02:37]}  Na5 {[%clk 0:02:37]} 16. Bg5 {[%clk 0:02:35]}  Qc7 {[%clk 0:02:32]} 17. Rac1 {[%clk 0:02:33]}  Nc4 {[%clk 0:02:24]} 18. h4 {[%clk 0:02:31]}  Rfe8 {[%clk 0:02:15]} 19. h5 {[%clk 0:02:28]}  a6 {[%clk 0:02:09]} 20. Qh4 {[%clk 0:02:26]}  b5 {[%clk 0:01:57]} 21. Bf6 {[%clk 0:02:24]}  Bf8 {[%clk 0:01:50]} 22. g3 {[%clk 0:02:20]}  Nb2 {[%clk 0:01:13]} 23. hxg6 {[%clk 0:02:08]}  fxg6 {[%clk 0:01:11]} 24. Bxg6 {[%clk 0:02:08]}  hxg6 {[%clk 0:01:11]} 25. Qh8+ {[%clk 0:02:06]}  Kf7 {[%clk 0:01:10]} 26. Qh7+ {[%clk 0:02:06]} 1-0


[Site "https://www.chess.com"]

[Event "Titled Tuesday Blitz May 24 Early 2022"]
[White "Stevens, Christian"]
[Black "Quirke, Jeffrey"]
[WhiteFideId "2604450"]
[BlackFideId "2013029"]
[WhiteElo "2482"]
[BlackElo "2230"]
[Result "1-0"]
[Round "06"]
[TimeControl "180+1"]
[Date "2022.05.25"]
[WhiteClock "0:00:24"]
[BlackClock "0:00:42"]

1. d4 {[%clk 0:02:46]}  d5 {[%clk 0:02:58]} 2. Bf4 {[%clk 0:02:43]}  e6 {[%clk 0:02:58]} 3. e3 {[%clk 0:01:44]}  Nf6 {[%clk 0:02:56]} 4. Nd2 {[%clk 0:01:42]}  c5 {[%clk 0:02:52]} 5. c3 {[%clk 0:01:42]}  Nc6 {[%clk 0:02:52]} 6. Bd3 {[%clk 0:01:40]}  Bd6 {[%clk 0:02:52]} 7. Bxd6 {[%clk 0:01:38]}  Qxd6 {[%clk 0:02:51]} 8. f4 {[%clk 0:01:39]}  O-O {[%clk 0:02:48]} 9. a3 {[%clk 0:01:39]}  b6 {[%clk 0:02:48]} 10. Ngf3 {[%clk 0:01:38]}  Bb7 {[%clk 0:02:48]} 11. Ne5 {[%clk 0:01:38]}  Ne7 {[%clk 0:02:48]} 12. Qf3 {[%clk 0:01:37]}  a5 {[%clk 0:02:37]} 13. g4 {[%clk 0:01:32]}  a4 {[%clk 0:02:16]} 14. g5 {[%clk 0:01:30]}  Ne8 {[%clk 0:02:16]} 15. Rg1 {[%clk 0:01:13]}  Nf5 {[%clk 0:02:14]} 16. Qh3 {[%clk 0:00:57]}  Kh8 {[%clk 0:01:25]} 17. g6 {[%clk 0:00:53]}  Nf6 {[%clk 0:00:57]} 18. gxf7 {[%clk 0:00:42]}  h6 {[%clk 0:00:43]} 19. Ng6+ {[%clk 0:00:39]}  Kh7 {[%clk 0:00:43]} 20. Nxf8+ {[%clk 0:00:22]}  Rxf8 {[%clk 0:00:44]} 21. Bxf5+ {[%clk 0:00:22]}  exf5 {[%clk 0:00:43]} 22. Qxf5+ {[%clk 0:00:23]}  Kh8 {[%clk 0:00:43]} 23. Qg6 {[%clk 0:00:24]}  Rxf7 {[%clk 0:00:42]} 24. Qxf7 {[%clk 0:00:24]} 1-0


[Site "https://www.chess.com"]

[Event "Titled Tuesday Blitz May 24 Early 2022"]
[White "Tanenbaum, Zachary"]
[Black "Derraugh, Geordie"]
[WhiteFideId "2060850"]
[BlackFideId "2603950"]
[WhiteElo "2168"]
[BlackElo "2116"]
[Result "1-0"]
[Round "06"]
[TimeControl "180+1"]
[Date "2022.05.25"]
[WhiteClock "0:01:44"]
[BlackClock "0:02:05"]

1. e4 {[%clk 0:03:00]}  c5 {[%clk 0:02:59]} 2. Nf3 {[%clk 0:03:00]}  d6 {[%clk 0:03:00]} 3. d4 {[%clk 0:03:00]}  cxd4 {[%clk 0:03:00]} 4. Nxd4 {[%clk 0:03:01]}  Nf6 {[%clk 0:03:01]} 5. Nc3 {[%clk 0:03:01]}  a6 {[%clk 0:03:01]} 6. Be3 {[%clk 0:03:02]}  e5 {[%clk 0:03:00]} 7. Nb3 {[%clk 0:03:02]}  Be6 {[%clk 0:03:01]} 8. h3 {[%clk 0:03:03]}  Nbd7 {[%clk 0:03:01]} 9. g4 {[%clk 0:03:03]}  h6 {[%clk 0:03:00]} 10. Qd2 {[%clk 0:03:02]}  b5 {[%clk 0:03:00]} 11. O-O-O {[%clk 0:03:00]}  Nb6 {[%clk 0:03:00]} 12. Kb1 {[%clk 0:02:17]}  b4 {[%clk 0:02:53]} 13. Nd5 {[%clk 0:02:17]}  Nbxd5 {[%clk 0:02:49]} 14. exd5 {[%clk 0:02:18]}  Bxd5 {[%clk 0:02:50]} 15. Rg1 {[%clk 0:02:18]}  Qb8 {[%clk 0:02:34]} 16. f4 {[%clk 0:01:50]}  Be7 {[%clk 0:02:28]} 17. g5 {[%clk 0:01:50]}  hxg5 {[%clk 0:02:22]} 18. fxg5 {[%clk 0:01:50]}  Bxb3 {[%clk 0:02:10]} 19. gxf6 {[%clk 0:01:50]}  Bxa2+ {[%clk 0:02:10]} 20. Kxa2 {[%clk 0:01:50]}  gxf6 {[%clk 0:02:10]} 21. Bg2 {[%clk 0:01:45]}  Qd8 {[%clk 0:02:05]} 22. Bc6+ {[%clk 0:01:44]} 1-0


[Site "https://www.chess.com"]

[Event "Titled Tuesday Blitz May 24 Early 2022"]
[White "Tregubov, Pavel V."]
[Black "Martin, Lewis"]
[WhiteFideId "4115341"]
[BlackFideId "410551"]
[WhiteElo "2341"]
[BlackElo "2145"]
[Result "1-0"]
[Round "06"]
[TimeControl "180+1"]
[Date "2022.05.25"]
[WhiteClock "0:00:53"]
[BlackClock "0:00:13"]

1. e4 {[%clk 0:02:53]}  c5 {[%clk 0:02:59]} 2. Nf3 {[%clk 0:02:53]}  d6 {[%clk 0:02:59]} 3. Bb5+ {[%clk 0:02:53]}  Bd7 {[%clk 0:02:57]} 4. Bxd7+ {[%clk 0:02:53]}  Qxd7 {[%clk 0:02:56]} 5. O-O {[%clk 0:02:54]}  Nc6 {[%clk 0:02:54]} 6. c3 {[%clk 0:02:54]}  g6 {[%clk 0:02:53]} 7. d4 {[%clk 0:02:54]}  cxd4 {[%clk 0:02:52]} 8. cxd4 {[%clk 0:02:54]}  Bg7 {[%clk 0:02:52]} 9. Nc3 {[%clk 0:02:54]}  Nf6 {[%clk 0:02:49]} 10. h3 {[%clk 0:02:54]}  O-O {[%clk 0:02:47]} 11. e5 {[%clk 0:02:54]}  Ne8 {[%clk 0:02:36]} 12. Bf4 {[%clk 0:02:48]}  Rd8 {[%clk 0:02:33]} 13. Re1 {[%clk 0:02:36]}  dxe5 {[%clk 0:02:15]} 14. dxe5 {[%clk 0:02:33]}  Qxd1 {[%clk 0:02:08]} 15. Raxd1 {[%clk 0:02:32]}  Nc7 {[%clk 0:02:08]} 16. Bg3 {[%clk 0:01:57]}  Rxd1 {[%clk 0:01:56]} 17. Rxd1 {[%clk 0:01:57]}  Rd8 {[%clk 0:01:56]} 18. Rxd8+ {[%clk 0:01:57]}  Nxd8 {[%clk 0:01:56]} 19. Nd4 {[%clk 0:01:57]}  Nde6 {[%clk 0:01:47]} 20. Nxe6 {[%clk 0:01:52]}  Nxe6 {[%clk 0:01:47]} 21. f4 {[%clk 0:01:51]}  Kf8 {[%clk 0:01:33]} 22. Kf2 {[%clk 0:01:51]}  Ke8 {[%clk 0:01:33]} 23. Ke3 {[%clk 0:01:52]}  Kd7 {[%clk 0:01:31]} 24. Ke4 {[%clk 0:01:48]}  Nc5+ {[%clk 0:01:08]} 25. Kd5 {[%clk 0:01:48]}  Nd3 {[%clk 0:01:02]} 26. b3 {[%clk 0:01:45]}  b6 {[%clk 0:00:57]} 27. Kc4 {[%clk 0:01:38]}  Nc5 {[%clk 0:00:50]} 28. b4 {[%clk 0:01:24]}  Ne6 {[%clk 0:00:49]} 29. Nd5 {[%clk 0:01:21]}  Bh6 {[%clk 0:00:41]} 30. Bh2 {[%clk 0:01:20]}  Nd8 {[%clk 0:00:20]} 31. b5 {[%clk 0:01:14]}  Ne6 {[%clk 0:00:19]} 32. g3 {[%clk 0:01:13]}  Nc5 {[%clk 0:00:19]} 33. Nb4 {[%clk 0:01:01]}  Bg7 {[%clk 0:00:17]} 34. Nc6 {[%clk 0:00:52]}  a6 {[%clk 0:00:17]} 35. Nb8+ {[%clk 0:00:51]}  Kc7 {[%clk 0:00:14]} 36. Nxa6+ {[%clk 0:00:52]}  Nxa6 {[%clk 0:00:14]} 37. bxa6 {[%clk 0:00:53]}  Kb8 {[%clk 0:00:12]} 38. Kb5 {[%clk 0:00:52]}  Ka7 {[%clk 0:00:13]} 39. Bg1 {[%clk 0:00:53]} 1-0


[Site "https://www.chess.com"]

[Event "Titled Tuesday Blitz May 24 Early 2022"]
[White "Tristan, Leonardo"]
[Black "Golubev, Mikhail"]
[WhiteFideId "113816"]
[BlackFideId "14100983"]
[WhiteElo "2404"]
[BlackElo "2374"]
[Result "1-0"]
[Round "06"]
[TimeControl "180+1"]
[Date "2022.05.24"]
[WhiteClock "0:00:43"]
[BlackClock "0:00:04"]

1. d4 {[%clk 0:02:59]}  Nf6 {[%clk 0:02:59]} 2. Nf3 {[%clk 0:02:56]}  d6 {[%clk 0:02:57]} 3. Bf4 {[%clk 0:02:57]}  g6 {[%clk 0:02:42]} 4. e3 {[%clk 0:02:57]}  Bg7 {[%clk 0:02:42]} 5. Be2 {[%clk 0:02:57]}  b6 {[%clk 0:02:38]} 6. O-O {[%clk 0:02:56]}  Bb7 {[%clk 0:02:38]} 7. h3 {[%clk 0:02:56]}  O-O {[%clk 0:02:37]} 8. Bh2 {[%clk 0:02:57]}  c5 {[%clk 0:02:33]} 9. c3 {[%clk 0:02:55]}  Nbd7 {[%clk 0:02:09]} 10. a4 {[%clk 0:02:54]}  a6 {[%clk 0:02:09]} 11. Nbd2 {[%clk 0:02:54]}  Ne4 {[%clk 0:02:04]} 12. Nxe4 {[%clk 0:02:36]}  Bxe4 {[%clk 0:02:05]} 13. Qb3 {[%clk 0:02:36]}  d5 {[%clk 0:01:56]} 14. Qa3 {[%clk 0:02:15]}  c4 {[%clk 0:01:48]} 15. Nd2 {[%clk 0:02:12]}  Bf5 {[%clk 0:01:47]} 16. e4 {[%clk 0:02:10]}  dxe4 {[%clk 0:01:42]} 17. Nxc4 {[%clk 0:02:10]}  Be6 {[%clk 0:01:34]} 18. Ne3 {[%clk 0:02:09]}  f5 {[%clk 0:01:30]} 19. Bf4 {[%clk 0:01:42]}  Nf6 {[%clk 0:01:22]} 20. Rfd1 {[%clk 0:01:34]}  Nd5 {[%clk 0:01:01]} 21. Nxd5 {[%clk 0:01:33]}  Bxd5 {[%clk 0:00:59]} 22. c4 {[%clk 0:01:27]}  Bf7 {[%clk 0:00:57]} 23. b4 {[%clk 0:01:28]}  Qd7 {[%clk 0:00:41]} 24. Qe3 {[%clk 0:01:23]}  Rfc8 {[%clk 0:00:33]} 25. d5 {[%clk 0:01:23]}  b5 {[%clk 0:00:23]} 26. cxb5 {[%clk 0:01:22]}  Bxa1 {[%clk 0:00:15]} 27. Rxa1 {[%clk 0:01:21]}  Qxd5 {[%clk 0:00:15]} 28. bxa6 {[%clk 0:01:21]}  Qe6 {[%clk 0:00:13]} 29. Bb5 {[%clk 0:01:14]}  Rxa6 {[%clk 0:00:12]} 30. Bxa6 {[%clk 0:01:14]}  Qxa6 {[%clk 0:00:12]} 31. b5 {[%clk 0:01:13]}  Qf6 {[%clk 0:00:12]} 32. Rb1 {[%clk 0:01:11]}  e5 {[%clk 0:00:12]} 33. Bg5 {[%clk 0:01:11]}  Qd6 {[%clk 0:00:11]} 34. b6 {[%clk 0:01:07]}  Qd3 {[%clk 0:00:08]} 35. Qxd3 {[%clk 0:00:58]}  exd3 {[%clk 0:00:09]} 36. b7 {[%clk 0:00:55]}  Rb8 {[%clk 0:00:09]} 37. a5 {[%clk 0:00:55]}  Bc4 {[%clk 0:00:07]} 38. Rb6 {[%clk 0:00:50]}  f4 {[%clk 0:00:06]} 39. a6 {[%clk 0:00:42]}  d2 {[%clk 0:00:06]} 40. a7 {[%clk 0:00:42]}  d1=Q+ {[%clk 0:00:04]} 41. Kh2 {[%clk 0:00:43]} 1-0


[Site "https://www.chess.com"]